Cogmind - Beta 15 @@@ ROGUE MODE // 2025.06.05 @ 16:15:20 Player: Candle Result: Destroyed by G-34 Mercenary with Small Laser Performance ------------- Evolutions (0) 0 Regions Visited (2) 400 Robots Destroyed (38) 190 Value Destroyed (804) 804 Prototype IDs (0) 0 Alien Tech Used (0) 0 Bonus (0) 0 TOTAL SCORE: 1394 Bonus ------- None Cogmind --------- Core Integrity 0/250 Matter 294/300 Energy 100/100 System Corruption 0% Temperature Cool (6) Movement Treading (240) Ox1 Location -10/Mines Parts ------- > --- POWER (1) -------- (None) > --- PROPULSION (2) --- Light Treads Light Treads > --- UTILITY (2) ------ Cooling System High-capacity Storage Unit > --- WEAPON (2) ------- Assault Rifle Assault Rifle > --- INVENTORY (20) --- Ion Engine Light Treads Compact Wheel Hover Unit Hover Unit Cooling System Medium Storage Unit Large Matter Pod (150) Visual Processing Unit Salvage Targeting Computer Weapon Shielding Light Armor Plating Improved Light Armor Plating Hacking Suite Hacking Suite Assault Rifle Assault Rifle Grenade Launcher Heavy Hammer Heavy Hammer Peak State ------------ > --- POWER ------------ Ion Engine > --- PROPULSION ------- Light Treads Light Treads > --- UTILITY ---------- Cooling System High-capacity Storage Unit > --- WEAPON ----------- Medium Laser Medium Laser > --- INVENTORY -------- Ion Engine Ion Engine Light Treads Compact Wheel Hover Unit Hover Unit Medium Storage Unit Medium Matter Pod Visual Processing Unit Salvage Targeting Computer Weapon Shielding Light Armor Plating Light Armor Plating Light Armor Plating Small Laser Small Laser Heavy Hammer [Rating: 10] Favorites ----------- Power Ion Engine Engine Ion Engine Propulsion Light Treads Treads Light Treads Wheel Compact Wheel Utility Cooling System Device Cooling System Storage High-capacity Storage Unit Weapon Medium Laser Energy Gun Medium Laser Ballistic Gun Assault Rifle Launcher Grenade Launcher Build | -11 -10 -10 ------- Run | Yrd Mat Min Slots Evolved . | . . . Power . | . . . Propulsion . | . . . Utility . | . . . Weapon . | . . . Parts Attached 25 | 8 14 3 Power 5 | 1 3 1 Engine 5 | 1 3 1 Core . | . . . Reactor . | . . . Propulsion 5 | 3 2 . Treads 4 | 2 2 . Leg . | . . . Wheel 1 | 1 . . Hover . | . . . Flight . | . . . Utility 6 | 2 3 1 Device 3 | 1 1 1 Storage 3 | 1 2 . Processor . | . . . Hackware . | . . . Protection . | . . . Artifact . | . . . Weapon 9 | 2 6 1 Energy Gun 5 | 2 3 . Energy Cannon . | . . . Ballistic Gun 3 | . 3 . Ballistic Cannon . | . . . Launcher 1 | . . 1 Special Weapon . | . . . Impact Weapon . | . . . Slashing Weapon . | . . . Piercing Weapon . | . . . Special Melee Weapon . | . . . Unidentified Prototypes . | . . . Parts Lost 3 | . 2 1 Power 1 | . . 1 Propulsion . | . . . Utility . | . . . Weapon 2 | . 2 . Highest Loss Streak 1 | . 1 1 To Critical Strikes . | . . . Average Backups 15 | 1 15 20 Power 1 | . 1 1 Propulsion 3 | . 3 4 Utility 7 | . 7 10 Weapon 3 | . 2 4 Tool/Special . | . . . Unused Backups 22 | . 5 17 Power 1 | . . 1 Propulsion 2 | . . 2 Utility 13 | . 3 10 Weapon 6 | . 2 4 Tool/Special . | . . . Average Slot Usage (%) 97 | . 98 95 Engine 13 | . 14 9 Treads 27 | . 27 28 Device 13 | . 13 14 Storage 14 | . 14 14 Energy Gun 18 | . 22 . Ballistic Gun 8 | . 4 27 Peak Build Rating 10 | 7 10 10 Average Rating 9 | 5 9 9 On Entrance 5 | . 7 10 Naked Turns . | . . . Heaviest Build 51 | 12 51 51 Greatest Support 40 | 40 40 40 Greatest Overweight (x) 3 | 3 1 1 Average Overweight (x) . | . . 1 Largest Inventory Capacity 20 | 8 20 20 Average Capacity 17 | 7 17 20 Most Carried 20 | 3 20 20 Average Carried 15 | 1 15 20 Final Capacity 20 | 8 20 20 Final Carried 20 | 3 20 20 Class Distribution -------------------- 100% | Mutant Dominant Class ---------------- Mutant | -10/Materials Mutant | -10/Mines Resources | -11 -10 -10 ----------- Run | Yrd Mat Min Matter Collected 864 | 257 407 200 Remotely . | . . . Salvage Created 1092 | 98 850 144 Parts 68 | 10 49 9 Haulers Intercepted 2 | . 2 . Recyclers Shooed 2 | . 2 . Parts Field Recycled . | . . . Retrieved Matter . | . . . Parts Self-Destructed . | . . . Prevented . | . . . Kills | -11 -10 -10 ------- Run | Yrd Mat Min Combat Hostiles Destroyed 31 | . 19 12 Guns 23 | . 16 7 AOE 5 | . . 5 Classes Destroyed 9 | 1 6 2 Worker 3 | . 3 . Tunneler 4 | 4 . . Hauler 2 | . 2 . Operator 2 | . 2 . Watcher 2 | . 2 . Swarmer 9 | . 6 3 Grunt 15 | . 13 2 Demolisher 1 | . . 1 Assembled 6 | . . 6 Best Kill Streak 7 | 3 4 7 Combat Bots Only 7 | . 4 7 Max Kills in Single Turn 3 | 1 2 3 Gunslinging . | . . . Exploded 3 | . . 3 Melee . | . . . Uniques/NPCs Destroyed . | . . . Combat | -11 -10 -10 -------- Run | Yrd Mat Min Hostile Shots Fired 173 | . 129 44 Missed 42 | . 27 15 Hits 131 | . 102 29 Projectile 131 | . 102 29 AOE 2 | . . 2 Critical Strikes 1 | . 1 . Damage Taken 1557 | . 1131 426 Core 258 | . 204 54 Absorbed by Shields . | . . . Regen/Repaired (Parts) 208 | . 208 . Core Remaining (%) 100 | 100 . . Volleys Fired 142 | 8 110 24 Largest 2 | 2 2 2 Hottest 100 | 90 100 40 Shots Fired 265 | 16 207 42 Gun 260 | 16 207 37 Cannon . | . . . Launcher 5 | . . 5 Special . | . . . Kinetic 42 | . 5 37 Thermal 218 | 16 202 . Explosive 5 | . . 5 Electromagnetic . | . . . Robot Hit Streak 10 | 5 10 6 Robot Miss Streak 8 | 2 8 4 Penetration Max . | . . . Secondary Targets 2 | . . 2 Max Gunslinging Chain 1 | . . 1 Shots Hit Robots 154 | 10 121 23 Core Hits 69 | 4 45 20 Critical Kills . | . . . Critical Parts Destroyed 1 | . 1 . Critical Strikes 8 | 1 7 . Burn 7 | 1 6 . Destroy 1 | . 1 . Melee Attacks . | . . . Impact . | . . . Slashing . | . . . Piercing . | . . . Sneak Attacks . | . . . Combat Hostiles . | . . . Follow-up Attacks . | . . . Damage Inflicted 2323 | 131 1498 694 Guns 1914 | 131 1486 297 Cannons . | . . . Explosions 397 | . . 397 Melee . | . . . Ramming 12 | . 12 . Kinetic 327 | . 30 297 Thermal 1587 | 131 1456 . Explosive 397 | . . 397 Electromagnetic . | . . . Impact . | . . . Slashing . | . . . Piercing . | . . . Highest Corruption . | . . . Average Corruption . | . . . Corruption Purged . | . . . Corruption Blocked . | . . . Overload Shots . | . . . Overflow Damage . | . . . Projectiles . | . . . Explosions . | . . . Melee . | . . . Knockbacks . | . . . Impact . | . . . Kinetic . | . . . Secondary . | . . . Self-Inflicted Damage . | . . . Shots . | . . . Rammed 1 | . 1 . Targets Rammed 2 | . 2 . Kicked . | . . . Crushed 1 | . 1 . Highest Temperature 182 | 120 182 . Average Temperature 68 | 61 71 . Received Heat Transfer 630 | . 525 105 Siege Activations . | . . . Martial Activations . | . . . Shielding Activations . | . . . Robots Disrupted . | . . . Combat Hostiles . | . . . Robots Corrupted . | . . . Combat Hostiles . | . . . Parts Fried . | . . . Impact Corruptions . | . . . Robots Melted 3 | . 3 . Combat Hostiles 3 | . 3 . Parts Melted 13 | 1 12 . Heat Transferred 4709 | 421 4288 . Parts Sabotaged . | . . . Parts Stolen . | . . . Parts Stripped . | . . . Power Chain Reactions . | . . . Alert | -11 -10 -10 ------- Run | Yrd Mat Min Maximum Alert Level . | . . . Low Security (%) 100 | 100 100 100 Level 1 . | . . . Level 2 . | . . . Level 3 . | . . . Level 4 . | . . . Level 5 . | . . . High Security . | . . . Max Security . | . . . Peak Influence 138 | 5 138 80 Initial 31 | . . 31 Average 42 | . 48 25 Influence Increases 815 | 20 611 184 Destroy 0b10 Robot/C 500 | . 380 120 Destroy 0b10 Robot/NC 65 | 20 45 . Destroy Leader 118 | . 98 20 Successful Hack 27 | . 27 . Destroy Structure 15 | . 1 14 Lose Combat Pursuer 90 | . 60 30 Influence Decreases 815 | 20 529 266 Entered New Map 51 | . . 51 Time Decay 744 | 20 519 205 Lost Part 20 | . 10 10 Squads Dispatched 4 | . 4 . Investigation 2 | . 2 . Extermination . | . . . Reinforcement 2 | . 2 . Assault . | . . . Garrison . | . . . Intercept . | . . . Searches Triggered . | . . . Construction Impeded . | . . . Haulers Reinforced . | . . . Active Scanning Responses . | . . . Cargo Convoy Interrupts . | . . . Stealth | -11 -10 -10 --------- Run | Yrd Mat Min Distress Signals 1 | . 1 . Communications Jammed . | . . . Distress Signals . | . . . Times Spotted 58 | . 42 16 Peak Tracking Total 8 | . 4 8 Tactical Retreats 4 | . 3 1 Traps | -11 -10 -10 ------- Run | Yrd Mat Min Traps Triggered 1 | . 1 . Indirectly . | . . . Trap Hack Attempts . | . . . Triggered . | . . . Disarmed . | . . . Reprogrammed . | . . . Reused . | . . . Traps Extracted . | . . . Installed . | . . . Triggered . | . . . Machines | -11 -10 -10 ---------- Run | Yrd Mat Min Machines Disabled . | . . . Max in Single Turn . | . . . Machines Repaired . | . . . Machines Dismantled . | . . . Machines Sabotaged . | . . . Overloaded Fab Kills . | . . . Hacking | -11 -10 -10 --------- Run | Yrd Mat Min Machines Accessed 8 | . 8 . Terminals 6 | . 6 . Fabricators . | . . . Repair Stations 1 | . 1 . Recycling Units 1 | . 1 . Scanalyzers . | . . . Garrison Access . | . . . Total Hacks 30 | . 30 . Successful 13 | . 13 . Failed 17 | . 17 . Catastrophic . | . . . Database Lockouts . | . . . Manual 12 | . 12 . Terminals 19 | . 19 . Fabricators . | . . . Repair Stations 5 | . 5 . Recycling Units 6 | . 6 . Scanalyzers . | . . . Garrison Access . | . . . Terminal Hacks 5 | . 5 . Robot Analysis 2 | . 2 . Locate Traps 1 | . 1 . Transport Status 1 | . 1 . Zone Layout 1 | . 1 . Fabricator Hacks . | . . . Repair Station Hacks 4 | . 4 . Scan Component 2 | . 2 . Repair 2 | . 2 . Recycling Unit Hacks 3 | . 3 . Process 1 | . 1 . Report Inventory 1 | . 1 . Retrieve Matter 1 | . 1 . Scanalyzer . | . . . Garrison Access Hacks . | . . . Unauthorized Hacks 1 | . 1 . Terminals 1 | . 1 . Botnet 1 | . 1 . Fabricators . | . . . Repair Stations . | . . . Recycling Units . | . . . Scanalyzers . | . . . Garrison Access . | . . . Data Cores Recovered . | . . . Used . | . . . Hacking Detections 8 | . 8 . Full Trace Events 2 | . 2 . Feedback Events . | . . . Feedback Blocked . | . . . Robot Schematics Acquired . | . . . Robots Built . | . . . Authchips . | . . . Time . | . . . Total Robot Build Rating . | . . . Part Schematics Acquired . | . . . Parts Built . | . . . Authchips . | . . . Time . | . . . Total Part Build Rating . | . . . Parts Repaired 2 | . 2 . Time 52 | . 52 . Parts Recycled . | . . . Recycled Matter 165 | . 165 . Retrieved Matter 231 | . 231 . Retrieved Components . | . . . Parts Scanalyzed . | . . . Part Schematics Acquired . | . . . Parts Damaged . | . . . Bothacking | -11 -10 -10 ------------ Run | Yrd Mat Min Used RIF Installer . | . . . Robots Hacked . | . . . Non-combat . | . . . Combat . | . . . Robot Hacks Applied . | . . . Relay Couplers Released . | . . . Fabnet Peak Effective % . | . . . Robots Rewired . | . . . Allies Hacked . | . . . Hacks Repelled . | . . . Allies | -11 -10 -10 -------- Run | Yrd Mat Min Total Allies . | . . . Largest Group . | . . . Highest-Rated Group . | . . . Highest-Rated Ally . | . . . Total Orders . | . . . Ally Attacks . | . . . Total Damage . | . . . Kills . | . . . Allies Corrupted . | . . . Allies Melted . | . . . Intel | -11 -10 -10 ------- Run | Yrd Mat Min Active Infowar (turns) 314 | 25 289 . Seismic 314 | 25 289 . Robot Analysis Total 2 | . 2 . Derelict Logs Recovered . | . . . Drone Launches . | . . . Drone Recoveries . | . . . Exploration | -11 -10 -10 ------------- Run | Yrd Mat Min Turns Passed 3681 | 159 2893 629 Spaces Moved 1349 | 81 1050 218 Core 16 | 16 . . Treads 1328 | 60 1050 218 Legs . | . . . Wheels 5 | 5 . . Hover . | . . . Flight . | . . . Fastest Speed 50 | 50 160 240 Average Speed 218 | 144 219 240 Slowest Speed 240 | 200 240 240 Overloaded Moves . | . . . Propulsion Burnouts . | . . . Robots Hopped . | . . . Potential Cave-ins . | . . . Cave-ins Triggered . | . . . Exploration Rate (%) 52 | 4 99 53 Regions Visited 2 Branch Regions 1 Pre-discovered Areas . | . . . Known Exits Taken . | . . . Unknown Exits Taken 2 | 1 1 . Scrap Searched 1 | . . 1 Spaces Dug . | . . . Terrain Destroyed 14 | . . 14 Melee . | . . . Projectile . | . . . AOE 14 | . . 14 Terrain Rammed . | . . . Walls Destroyed . | . . . Machines Disabled . | . . . Actions | -11 -10 -10 --------- Run | Yrd Mat Min Total 1820 | 103 1435 282 Wait 246 | 4 213 29 Move 1347 | 80 1049 218 Hop . | . . . Pick Up 33 | 3 27 3 Fast Attach 10 | 7 3 . Attach 2 | . 2 . Detach . | . . . Swap 19 | 1 13 5 Drop 19 | . 16 3 Fire 142 | 8 110 24 Melee . | . . . Ram . | . . . Kick . | . . . Crush 2 | . 2 . Escape Stasis . | . . . Rewire . | . . . Trap . | . . . Miscellaneous . | . . . Route ------- -11/Scrapyard -10/Materials (discovered 6 exits: [*Mat x3] / [*Min x2] / [*Sub]) -10/Mines (discovered 2 exits: [*Mat] / [*Sub]) History --------- Turn | Location | Event 3 | -11/Scrapyard | Discovered new exit (range 16) 160 | -11/Scrapyard | Entered Materials 237 | -10/Materials | Discovered new exit (range 7) 323 | -10/Materials | Build established: Mutant 802 | -10/Materials | Discovered new exit (range 15) 1272 | -10/Materials | Discovered new exit (range 4) 1389 | -10/Materials | Discovered new exit (range 8) 1536 | -10/Materials | Discovered new exit (range 16) 1728 | -10/Materials | Core integrity fell below 50% 1925 | -10/Materials | Repaired Lgt. Treads 1972 | -10/Materials | Repaired Lgt. Treads 2109 | -10/Materials | Discovered new exit (range 14) 2372 | -10/Materials | Core integrity fell below 20% 3053 | -10/Materials | Entered Mines 3113 | -10/Mines | Met a Derelict bent on vengeance 3432 | -10/Mines | Assembled infested the area 3510 | -10/Mines | Destroyed 7 combat bots 3578 | -10/Mines | Found a hidden stash of uninstalled traps 3590 | -10/Mines | Discovered new exit (range 5) 3675 | -10/Mines | Discovered new exit (range 7) 3682 | -10/Mines | Destroyed by G-34 Mercenary with Small Laser Last Messages --------------- Acquired Imp. Light Armor Plating. K-01 Serf collects debris. Acquired 96 matter. K-01 Serf collects debris. The unstable cave ceiling collapses. Acquired 16 matter. K-01 Serf collects debris. The unstable cave ceiling collapses. K-01 Serf collects debris. The unstable cave ceiling collapses. K-01 Serf collects debris. The unstable cave ceiling collapses. T-07 Excavator is excavating. K-01 Serf collects debris. T-07 Excavator is excavating. A stash of uninstalled traps is collected here! T-07 Excavator is excavating. EXIT=FOUND T-07 Excavator is excavating. EXIT=FOUND Map ----- +----------------------------------------------------+ | | | | | | | | | | | | | | | | | | | | | | | | | | | | | ????????????????????????????????????????????????? | | ????????????????????????????????????????????????? | | ????????????????????????????????????????????????? | | ????????????????????????????????????????????????? | | ????????????????????????????????????????????????? | | ??????????????###???????????????????????????????? | | ??????????????# ??????????????????????????????? | | ????????????????